Cogmind - Beta 15 @@@ ROGUE MODE // 2025.06.18 @ 15:05:01 Player: Tenderz Result: Destroyed by S-27 Virus with Autogun Performance ------------- Evolutions (3) 1500 Regions Visited (10) 2000 Robots Destroyed (109) 545 Value Destroyed (3194) 3194 Prototype IDs (17) 340 Alien Tech Used (0) 0 Bonus (398) 398 TOTAL SCORE: 7977 Bonus ------- Follower Combat Kills 98 Met Data Miner 300 Cogmind --------- Core Integrity 0/700 Matter 120/300 Energy 68/100 System Corruption 14% Temperature Cool (0) Movement Core (1450) Ox28 Location -6/Proximity Caves Parts ------- > --- POWER (1) -------- (None) > --- PROPULSION (5) --- (None) > --- UTILITY (5) ------ Improved Heat Sink Huge Storage Unit Enhanced Optical Array Improved Sensor Array Makeshift Hacking Suite > --- WEAPON (2) ------- Heavy Particle Gun > --- INVENTORY (25) --- High-capacity Matter Pod (0) Advanced ECM Suite Improved Light Armor Plating Deep Network Scanner Makeshift System Shield Ghost Barrier Quantum Router High-powered Tractor Beam Improved Recalibrator Heavy Particle Gun Improved EM Pulse Cannon Latent Energy Streamer Plasma Cannon Flak Gun Assault Cannon Gauss Cannon Improved Grenade Launcher Heavy Rocket Launcher Heavy Rocket Launcher Great Axe Peak State ------------ > --- POWER ------------ Makeshift Power Source > --- PROPULSION ------- Advanced Treads Armored Huge Wheel Armored Huge Wheel > --- UTILITY ---------- Huge Storage Unit Improved Sensor Array Improved Signal Interpreter Makeshift Hacking Suite High-powered Tractor Beam > --- WEAPON ----------- Latent Energy Streamer Great Axe > --- INVENTORY -------- Light Nuclear Core Armored Treads Armored Huge Wheel Improved Heat Sink High-capacity Matter Pod Weapon Cycler Advanced ECM Suite Improved Light Armor Plating Deep Network Scanner Makeshift System Shield Quantum Router Improved Recalibrator Heavy Particle Gun Heavy Particle Gun Heavy Particle Gun Improved EM Pulse Cannon Plasma Cannon Heavy Ion Cannon Assault Cannon Gauss Cannon Improved Grenade Launcher Heavy Rocket Launcher Heavy Rocket Launcher Heavy Rocket Launcher [Rating: 61] Favorites ----------- Power Ion Engine Engine Ion Engine Power Core Light Nuclear Core Propulsion Light Treads Treads Light Treads Leg Aluminum Leg Wheel Armored Huge Wheel Utility Huge Storage Unit Device Seismic Detector Storage Huge Storage Unit Processor Improved Signal Interpreter Hackware Makeshift Hacking Suite Protection Light Armor Plating Weapon Heavy Particle Gun Energy Gun Heavy Particle Gun Energy Cannon Heavy Ion Cannon Ballistic Gun Assault Rifle Ballistic Cannon Light Cannon Launcher Grenade Launcher Special Weapon Mining Laser Slashing Weapon Makeshift Sword Build | -11 -10 -10 -10 -9 -8 -7 -7 -7 -7 -6 ------- Run | Yrd Mat Min Exi Min Mat Fac Low Low Dat Pro Slots Evolved 6 | . . . . . 4 2 . . . . Power . | . . . . . . . . . . . Propulsion 3 | . . . . . 2 1 . . . . Utility 3 | . . . . . 2 1 . . . . Weapon . | . . . . . . . . . . . Parts Attached 88 | 9 17 6 4 1 10 19 6 10 6 . Power 13 | 1 3 . 1 . 1 3 2 1 1 . Engine 9 | 1 3 . 1 . . 2 1 1 . . Core 4 | . . . . . 1 1 1 . 1 . Reactor . | . . . . . . . . . . . Propulsion 23 | 4 4 2 . . 2 8 1 . 2 . Treads 13 | 2 1 1 . . 2 5 1 . 1 . Leg 2 | . 2 . . . . . . . . . Wheel 8 | 2 1 1 . . . 3 . . 1 . Hover . | . . . . . . . . . . . Flight . | . . . . . . . . . . . Utility 23 | 2 3 3 . . 5 4 1 4 1 . Device 12 | 1 1 1 . . 3 1 1 4 . . Storage 4 | 1 1 1 . . 1 . . . . . Processor 4 | . 1 . . . . 2 . . 1 . Hackware 1 | . . . . . 1 . . . . . Protection 2 | . . 1 . . . 1 . . . . Artifact . | . . . . . . . . . . . Weapon 29 | 2 7 1 3 1 2 4 2 5 2 . Energy Gun 8 | 1 3 . . . 2 2 . . . . Energy Cannon 5 | . . . 1 . . 1 2 1 . . Ballistic Gun 4 | 1 2 . 1 . . . . . . . Ballistic Cannon 3 | . . 1 . 1 . . . 1 . . Launcher 5 | . 1 . . . . 1 . 1 2 . Special Weapon 2 | . 1 . . . . . . 1 . . Impact Weapon . | . . . . . . . . . . . Slashing Weapon 2 | . . . 1 . . . . 1 . . Piercing Weapon . | . . . . . . . . . . . Special Melee Weapon . | . . . . . . . . . . . Unidentified Prototypes 4 | . . 1 1 . 1 1 . . . . Parts Lost 38 | . 4 1 1 . 5 12 1 2 10 2 Power 8 | . 1 . 1 . . 2 1 1 2 . Propulsion 14 | . 1 . . . 3 5 . . 4 1 Utility 9 | . . . . . 2 4 . 1 2 . Weapon 7 | . 2 1 . . . 1 . . 2 1 Highest Loss Streak 10 | . 2 1 1 . 2 6 1 1 10 2 To Critical Strikes . | . . . . . . . . . . . Average Backups 18 | 4 8 16 20 22 20 19 21 23 22 20 Power . | . . 1 1 1 1 . . . . . Propulsion 2 | 1 3 4 5 5 2 . 2 2 1 . Utility 6 | . 1 4 5 7 7 7 7 7 8 9 Weapon 9 | 1 2 6 8 9 10 10 10 12 11 11 Tool/Special . | . . . . . . . . . . . Unused Backups 34 | . 4 . . . 6 5 5 2 . 12 Power 3 | . 1 . . . 1 1 . . . . Propulsion 4 | . 1 . . . 1 1 1 . . . Utility 12 | . 1 . . . 2 . 1 . . 8 Weapon 15 | . 1 . . . 2 3 3 2 . 4 Tool/Special . | . . . . . . . . . . . Average Slot Usage (%) 89 | . 99 99 99 100 98 88 83 82 68 60 Engine 7 | . 13 14 13 14 1 2 5 6 3 . Core 1 | . . . . . 7 2 1 . . . Treads 14 | . 12 13 . . 27 30 7 7 6 6 Leg 1 | . 11 . . . . . . . . . Wheel 10 | . 3 14 28 28 8 1 15 15 8 . Device 12 | . 14 13 14 14 16 8 7 12 11 15 Storage 9 | . 14 14 14 14 9 7 7 7 7 7 Processor 3 | . . . . . . 6 7 7 6 7 Hackware 4 | . . . . . 6 7 7 7 7 7 Protection 1 | . . . . . 4 2 6 . . . Energy Gun 9 | . 7 25 9 . 12 11 6 3 5 7 Energy Cannon 2 | . . . 2 . . . 6 7 6 7 Ballistic Gun 2 | . 17 . 1 3 . . . . . . Ballistic Cannon 2 | . . 1 9 19 4 . . 2 . . Slashing Weapon 1 | . . . 4 4 . 2 . . . . Peak Build Rating 61 | 9 9 17 23 16 32 46 51 55 61 36 Average Rating 30 | 6 8 9 13 13 28 37 45 53 45 35 On Entrance 24 | . 9 8 10 15 13 28 45 51 55 34 Naked Turns . | . . . . . . . . . . . Heaviest Build 104 | 13 21 93 98 92 96 104 99 101 100 93 Greatest Support 102 | 10 40 40 20 20 80 102 56 56 56 20 Greatest Overweight (x) 30 | 1 1 9 4 4 9 5 1 1 4 30 Average Overweight (x) 2 | . . 5 4 4 6 . 1 1 1 4 Largest Inventory Capacity 25 | 8 10 25 25 25 25 25 25 25 25 25 Average Capacity 22 | 7 9 22 25 25 25 25 25 25 25 25 Most Carried 25 | 7 10 23 25 25 25 25 25 25 25 20 Average Carried 21 | 4 8 19 23 25 23 22 24 24 22 20 Final Capacity 25 | 8 10 25 25 25 25 25 25 25 25 25 Final Carried 25 | 6 10 22 25 25 23 25 25 25 21 20 Class Distribution -------------------- 54% | Mutant 22% | Derelict-Mutant 10% | Scavenger-Mutant 6% | Assassin 3% | Scavenger-Skirmisher Dominant Class ---------------- Mutant | -10/Materials Mutant | -10/Mines Mutant | -10/Exiles Derelict-Mutant | -9/Mines Scavenger-Mutant | -8/Materials Mutant | -7/Factory Mutant | -7/Lower Caves Derelict-Mutant | -7/Lower Caves Mutant | -7/Data Miner Mutant | -6/Proximity Caves Resources | -11 -10 -10 -10 -9 -8 -7 -7 -7 -7 -6 ----------- Run | Yrd Mat Min Exi Min Mat Fac Low Low Dat Pro Matter Collected 3177 | 293 274 404 175 66 344 433 417 527 223 21 Remotely 389 | . . . . . 108 . 146 112 23 . Salvage Created 3520 | 161 695 107 161 23 605 910 175 525 137 21 Parts 187 | 12 42 8 7 6 30 30 14 29 6 3 Haulers Intercepted 4 | . 1 . . . 2 1 . . . . Recyclers Shooed 2 | 1 . 1 . . . . . . . . Parts Field Recycled . | . . . . . . . . . . . Retrieved Matter . | . . . . . . . . . . . Parts Self-Destructed 31 | . . . . . . . 9 19 . 3 Prevented . | . . . . . . . . . . . Kills | -11 -10 -10 -10 -9 -8 -7 -7 -7 -7 -6 ------- Run | Yrd Mat Min Exi Min Mat Fac Low Low Dat Pro Combat Hostiles Destroyed 80 | . 17 7 . 2 12 12 8 17 4 1 Melee 1 | . . . . . . 1 . . . . Guns 24 | . 11 3 . . 5 2 1 1 . 1 Cannons 8 | . . . . 2 2 . . 4 . . AOE 45 | . 6 4 . . 5 7 7 12 4 . Classes Destroyed 15 | 2 5 . 1 . 3 3 . 1 . . Worker 3 | . 2 . . . . 1 . . . . Builder 2 | . 1 . . . 1 . . . . . Tunneler 5 | 5 . . . . . . . . . . Hauler 4 | . 1 . . . 2 1 . . . . Recycler 9 | 1 2 . . . 1 5 . . . . Mechanic 1 | . . . . . 1 . . . . . Operator 1 | . . . . . . 1 . . . . Swarmer 32 | . 6 6 . 2 3 1 4 9 . 1 Grunt 32 | . 11 1 2 . 6 5 3 4 . . Brawler 1 | . . . . . . 1 . . . . Duelist 1 | . . . . . 1 . . . . . Sentry 6 | . . . . . 2 1 1 2 . . Hunter 3 | . . . 1 . . 2 . . . . Programmer 3 | . . . . . . 2 . 1 . . Enhanced Grunt 4 | . . . . . . . . . 4 . Mutant 1 | . . . . . . . . 1 . . Best Kill Streak 9 | 6 9 3 . 2 4 7 4 4 3 1 Combat Bots Only 6 | . 6 3 . 2 3 5 4 4 3 1 Max Kills in Single Turn 4 | 1 3 2 3 1 2 4 2 3 1 1 Gunslinging . | . . . . . . . . . . . Exploded 3 | . 2 2 . . 2 2 2 3 1 . Melee 1 | . . . . . . 1 . . . . Uniques/NPCs Destroyed 1 | . . . . . . . . . 1 . Data Miner (-7/Data Miner) Combat | -11 -10 -10 -10 -9 -8 -7 -7 -7 -7 -6 -------- Run | Yrd Mat Min Exi Min Mat Fac Low Low Dat Pro Hostile Shots Fired 491 | . 107 38 . 7 49 118 27 63 42 40 Missed 140 | . 22 14 . 1 13 33 6 24 15 12 Hits 351 | . 85 24 . 6 36 85 21 39 27 28 Melee 3 | . . . . . . 3 . . . . Projectile 348 | . 85 24 . 6 36 82 21 39 27 28 Critical Strikes 3 | . . . . . 1 1 . . . 1 Part Disruptions 1 | . . . . . . . . . 1 . Damage Taken 5712 | . 921 222 33 77 531 1373 263 611 1258 423 Core 918 | . 104 9 11 10 83 220 41 133 121 186 Absorbed by Shields . | . . . . . . . . . . . Regen/Repaired (Parts) 95 | . 95 . . . . . . . . . Core Remaining (%) 76 | 100 . . . 46 84 . . . . . Volleys Fired 260 | 18 63 20 2 4 34 51 20 33 13 2 Largest 2 | 2 2 2 1 2 2 2 2 2 2 2 Hottest 145 | 70 100 80 60 63 110 110 130 145 135 120 Shots Fired 437 | 19 112 37 3 8 62 92 23 54 22 5 Gun 309 | 19 104 34 . . 39 89 2 16 3 3 Cannon 68 | . . . 3 8 17 . 5 29 4 2 Launcher 57 | . 5 3 . . 6 3 16 9 15 . Special 3 | . 3 . . . . . . . . . Kinetic 113 | 1 78 . . 8 17 . . 9 . . Thermal 229 | 18 29 . . . 39 89 7 36 6 5 Explosive 57 | . 5 3 . . 6 3 16 9 15 . Electromagnetic 38 | . . 34 3 . . . . . 1 . Robot Hit Streak 16 | 6 12 6 7 1 11 16 4 9 10 1 Robot Miss Streak 5 | 2 4 4 . 5 2 5 1 2 2 2 Penetration Max . | . . . . . . . . . . . Secondary Targets 4 | . 3 1 . . . . . . . . Max Gunslinging Chain 1 | . 1 1 . . . . . . . . Shots Hit Robots 254 | 10 72 18 2 2 44 57 4 31 13 1 Core Hits 177 | 7 35 8 6 2 28 29 16 25 20 1 Critical Kills . | . . . . . . . . . . . Critical Parts Destroyed . | . . . . . . . . . . . Critical Strikes 11 | 2 1 . . . 1 6 . 1 . . Burn 9 | 2 1 . . . . 6 . . . . Blast 2 | . . . . . 1 . . 1 . . Melee Attacks 28 | . . . 1 . 2 20 . 4 1 . Impact . | . . . . . . . . . . . Slashing 28 | . . . 1 . 2 20 . 4 1 . Piercing . | . . . . . . . . . . . Sneak Attacks 2 | . . . . . 1 . . . 1 . Combat Hostiles . | . . . . . . . . . . . Follow-up Attacks . | . . . . . . . . . . . Damage Inflicted 9384 | 124 1233 487 225 39 1356 1747 712 1769 1672 20 Guns 3023 | 124 881 228 . . 516 1035 38 151 30 20 Cannons 876 | . . . . 39 270 . 25 521 21 . Explosions 5020 | . 348 242 138 . 498 673 649 946 1526 . Melee 443 | . . . 87 . 72 38 . 151 95 . Ramming 22 | . 4 17 . . . 1 . . . . Kinetic 1162 | . 660 . . 39 270 . . 193 . . Thermal 2506 | 124 221 . . . 516 1035 63 479 48 20 Explosive 4731 | . 348 242 . . 498 673 649 946 1375 . Electromagnetic 520 | . . 228 138 . . . . . 154 . Impact . | . . . . . . . . . . . Slashing 443 | . . . 87 . 72 38 . 151 95 . Piercing . | . . . . . . . . . . . Highest Corruption 15 | . . . 7 7 . 15 15 15 14 14 Average Corruption 11 | . . . 4 7 . 10 15 12 12 14 Corruption Purged 4 | . . . . . . . . 4 . . Corruption Blocked . | . . . . . . . . . . . Effects 151 | . . . 7 6 . 44 26 37 16 15 Message Errors 32 | . . . 4 1 . 8 8 7 3 1 Matter Fused 37 | . . . . 1 . 15 3 8 4 6 Heat Flow Errors 17 | . . . . 1 . 4 4 5 . 3 Energy Discharges 24 | . . . 1 1 . 4 3 10 4 1 Parts Rejected 3 | . . . . . . 1 1 . 1 . Parts Fused 1 | . . . . . . 1 . . . . Data Loss (minor) 13 | . . . . 1 . 3 3 4 1 1 Data Loss (major) 9 | . . . . 1 . 2 2 1 1 2 Misfires 11 | . . . 1 . . 5 1 2 1 1 Alerts 2 | . . . 1 . . . 1 . . . Weapon Failures 2 | . . . . . . 1 . . 1 . Overload Shots . | . . . . . . . . . . . Overflow Damage 308 | . 3 23 1 . 43 80 11 112 35 . Projectiles 29 | . . . . . . . . 29 . . Explosions 194 | . 3 23 1 . 43 80 11 33 . . Melee 85 | . . . . . . . . 50 35 . Knockbacks 5 | . . . . . 5 . . . . . Impact . | . . . . . . . . . . . Kinetic 5 | . . . . . 5 . . . . . Secondary . | . . . . . . . . . . . Self-Inflicted Damage 287 | . 19 11 35 . . 165 41 16 . . Shots 9 | . 1 1 1 . . 4 1 1 . . Rammed 4 | . 1 2 . . . 1 . . . . Targets Rammed 5 | . 2 2 . . . 1 . . . . Kicked 1 | . 1 . . . . . . . . . Crushed . | . . . . . . . . . . . Highest Temperature 258 | 69 199 124 20 169 177 236 258 194 34 237 Average Temperature 58 | 23 67 45 12 40 62 63 83 64 12 104 Received Heat Transfer 1065 | . 399 30 . . 270 222 69 75 . . Siege Activations . | . . . . . . . . . . . Martial Activations . | . . . . . . . . . . . Shielding Activations . | . . . . . . . . . . . Robots Disrupted . | . . . . . . . . . . . Combat Hostiles . | . . . . . . . . . . . Robots Corrupted . | . . . . . . . . . . . Combat Hostiles . | . . . . . . . . . . . Parts Fried 1 | . . 1 . . . . . . . . Impact Corruptions . | . . . . . . . . . . . Robots Melted 2 | . . . . . . 2 . . . . Combat Hostiles 2 | . . . . . . 2 . . . . Parts Melted 17 | 4 1 . . . 3 6 . 3 . . Heat Transferred 5713 | 518 740 . . . 999 2405 111 792 111 37 Parts Sabotaged . | . . . . . . . . . . . Parts Stolen . | . . . . . . . . . . . Parts Stripped . | . . . . . . . . . . . Power Chain Reactions . | . . . . . . . . . . . Latent Energy Used 577 | . . . 377 . . . . . 200 . LE Corruption 10 | . . . 7 . . . . . 3 . Alert | -11 -10 -10 -10 -9 -8 -7 -7 -7 -7 -6 ------- Run | Yrd Mat Min Exi Min Mat Fac Low Low Dat Pro Maximum Alert Level 1 | . 1 . . . . . . . . . Low Security (%) 92 | 100 56 100 . 100 100 100 . . . . Level 1 7 | . 43 . . . . . . . . . Level 2 . | . . . . . . . . . . . Level 3 . | . . . . . . . . . . . Level 4 . | . . . . . . . . . . . Level 5 . | . . . . . . . . . . . High Security . | . . . . . . . . . . . Max Security . | . . . . . . . . . . . Peak Influence 358 | 10 358 173 . 135 144 188 . . . . Initial 109 | . . 109 . . 44 61 . . . . Average 91 | 1 197 63 . 39 75 76 . . . . Influence Increases 2665 | 30 637 195 . 155 468 555 180 375 20 50 Destroy 0b10 Robot/C 1640 | . 340 140 . 120 280 240 160 320 20 20 Destroy 0b10 Robot/NC 135 | 30 30 . . . 25 40 . 10 . . Destroy Leader 298 | . 72 30 . 20 64 62 20 30 . . Allied During Kill 20 | . . . . 14 6 . . . . . Successful Hack 101 | . 17 8 . . 11 65 . . . . Select Force Hacks 60 | . 30 . . . . 30 . . . . Disable Machine 60 | . . . . . 30 30 . . . . Destroy Structure 126 | . 28 17 . 1 37 43 . . . . Partial Spotted 45 | . . . . . . 45 . . . . Lose Combat Pursuer 180 | . 120 . . . 15 . . 15 . 30 Influence Decreases 2655 | 30 356 429 47 40 447 579 292 297 98 40 Entered New Map 485 | . . 172 47 . 71 75 42 . 78 . Time Decay 1860 | 30 316 247 . 40 286 394 240 277 10 20 Lost Part 270 | . 40 10 . . 50 110 10 20 10 20 Lost Ally 40 | . . . . . 40 . . . . . Squads Dispatched 10 | . 4 1 . . 1 4 . . . . Investigation 5 | . 2 1 . . 1 1 . . . . Extermination 2 | . . . . . . 2 . . . . Reinforcement 3 | . 2 . . . . 1 . . . . Assault . | . . . . . . . . . . . Garrison . | . . . . . . . . . . . Intercept . | . . . . . . . . . . . Searches Triggered . | . . . . . . . . . . . Construction Impeded . | . . . . . . . . . . . Haulers Reinforced . | . . . . . . . . . . . Active Scanning Responses . | . . . . . . . . . . . Cargo Convoy Interrupts . | . . . . . . . . . . . Stealth | -11 -10 -10 -10 -9 -8 -7 -7 -7 -7 -6 --------- Run | Yrd Mat Min Exi Min Mat Fac Low Low Dat Pro Distress Signals . | . . . . . . . . . . . Communications Jammed . | . . . . . . . . . . . Distress Signals . | . . . . . . . . . . . Times Spotted 102 | . 28 7 . 6 17 16 6 12 6 4 Peak Tracking Total 5 | . 5 3 . 3 3 5 3 5 3 3 Tactical Retreats 8 | . 5 . . . 1 . . 1 . 1 Traps | -11 -10 -10 -10 -9 -8 -7 -7 -7 -7 -6 ------- Run | Yrd Mat Min Exi Min Mat Fac Low Low Dat Pro Traps Triggered 5 | . 1 . . . 1 3 . . . . Indirectly . | . . . . . . . . . . . Trap Hack Attempts . | . . . . . . . . . . . Triggered . | . . . . . . . . . . . Disarmed . | . . . . . . . . . . . Reprogrammed . | . . . . . . . . . . . Reused . | . . . . . . . . . . . Traps Extracted . | . . . . . . . . . . . Installed . | . . . . . . . . . . . Triggered . | . . . . . . . . . . . Most Traps Carried 3 | . . 3 3 3 3 3 3 3 . . Machines | -11 -10 -10 -10 -9 -8 -7 -7 -7 -7 -6 ---------- Run | Yrd Mat Min Exi Min Mat Fac Low Low Dat Pro Machines Disabled 10 | . . . . . 2 2 . 4 2 . Max in Single Turn 1 | . . . . . 1 1 . 1 1 . Garrison Access 1 | . . . . . . 1 . . . . Machines Repaired . | . . . . . . . . . . . Machines Dismantled . | . . . . . . . . . . . Machines Sabotaged . | . . . . . . . . . . . Overloaded Fab Kills . | . . . . . . . . . . . Hacking | -11 -10 -10 -10 -9 -8 -7 -7 -7 -7 -6 --------- Run | Yrd Mat Min Exi Min Mat Fac Low Low Dat Pro Machines Accessed 19 | . 4 1 2 . 3 6 . . 3 . Terminals 10 | . 2 1 . . 3 4 . . . . Fabricators . | . . . . . . . . . . . Repair Stations 1 | . 1 . . . . . . . . . Recycling Units 2 | . 1 . . . . 1 . . . . Scanalyzers . | . . . . . . . . . . . Garrison Access 1 | . . . . . . 1 . . . . Total Hacks 79 | . 12 3 13 . 14 12 . . 25 . Successful 65 | . 7 2 13 . 11 7 . . 25 . Failed 13 | . 5 1 . . 2 5 . . . . Catastrophic 2 | . . . . . . 2 . . . . Database Lockouts 1 | . . . . . 1 . . . . . Manual 27 | . 7 2 2 . 9 7 . . . . Terminals 29 | . 4 3 . . 14 8 . . . . Fabricators . | . . . . . . . . . . . Repair Stations 3 | . 3 . . . . . . . . . Recycling Units 8 | . 5 . . . . 3 . . . . Scanalyzers . | . . . . . . . . . . . Garrison Access 1 | . . . . . . 1 . . . . Terminal Hacks 49 | . 1 2 13 . 7 1 . . 25 . Record 25 | . . 1 13 . . . . . 11 . Part Schematic 11 | . . . . . . . . . 11 . Robot Analysis 2 | . . 1 . . 1 . . . . . Prototype ID Bank 4 | . . . . . . 1 . . 3 . Branch Access Points 1 | . . . . . 1 . . . . . Locate Traps 1 | . . . . . 1 . . . . . Hauler Manifests 1 | . . . . . 1 . . . . . Zone Layout 4 | . 1 . . . 3 . . . . . Fabricator Hacks . | . . . . . . . . . . . Repair Station Hacks 2 | . 2 . . . . . . . . . Scan Component 1 | . 1 . . . . . . . . . Repair 1 | . 1 . . . . . . . . . Recycling Unit Hacks 1 | . 1 . . . . . . . . . Report Inventory 1 | . 1 . . . . . . . . . Scanalyzer . | . . . . . . . . . . . Garrison Access Hacks 1 | . . . . . . 1 . . . . Seal Access 1 | . . . . . . 1 . . . . Unauthorized Hacks 12 | . 3 . . . 4 5 . . . . Terminals 8 | . 1 . . . 4 3 . . . . Track 5 | . . . . . 3 2 . . . . Assimilate 1 | . 1 . . . . . . . . . Botnet 2 | . . . . . 1 1 . . . . Fabricators . | . . . . . . . . . . . Repair Stations . | . . . . . . . . . . . Recycling Units 4 | . 2 . . . . 2 . . . . Recyclers 2 | . 1 . . . . 1 . . . . Tunnel 2 | . 1 . . . . 1 . . . . Scanalyzers . | . . . . . . . . . . . Garrison Access . | . . . . . . . . . . . Data Cores Recovered . | . . . . . . . . . . . Used . | . . . . . . . . . . . Hacking Detections 12 | . 3 1 . . 3 5 . . . . Full Trace Events 1 | . . 1 . . . . . . . . Feedback Events . | . . . . . . . . . . . Feedback Blocked . | . . . . . . . . . . . Robot Schematics Acquired . | . . . . . . . . . . . Robots Built . | . . . . . . . . . . . Authchips . | . . . . . . . . . . . Time . | . . . . . . . . . . . Total Robot Build Rating . | . . . . . . . . . . . Part Schematics Acquired 11 | . . . . . . . . . 11 . Parts Built . | . . . . . . . . . . . Authchips . | . . . . . . . . . . . Time . | . . . . . . . . . . . Total Part Build Rating . | . . . . . . . . . . . Parts Repaired 1 | . 1 . . . . . . . . . Time 26 | . 26 . . . . . . . . . Parts Recycled . | . . . . . . . . . . . Recycled Matter . | . . . . . . . . . . . Retrieved Matter . | . . . . . . . . . . . Retrieved Components . | . . . . . . . . . . . Parts Scanalyzed . | . . . . . . . . . . . Part Schematics Acquired . | . . . . . . . . . . . Parts Damaged . | . . . . . . . . . . . Bothacking | -11 -10 -10 -10 -9 -8 -7 -7 -7 -7 -6 ------------ Run | Yrd Mat Min Exi Min Mat Fac Low Low Dat Pro Used RIF Installer . | . . . . . . . . . . . Robots Hacked . | . . . . . . . . . . . Non-combat . | . . . . . . . . . . . Combat . | . . . . . . . . . . . Robot Hacks Applied . | . . . . . . . . . . . Relay Couplers Released . | . . . . . . . . . . . Fabnet Peak Effective % . | . . . . . . . . . . . Robots Rewired 5 | . . . 5 . . . . . . . Allies Hacked . | . . . . . . . . . . . Hacks Repelled . | . . . . . . . . . . . Allies | -11 -10 -10 -10 -9 -8 -7 -7 -7 -7 -6 -------- Run | Yrd Mat Min Exi Min Mat Fac Low Low Dat Pro Total Allies 5 | . . . 5 . . . . . . . Largest Group 4 | . . . 4 2 2 . . . . . Highest-Rated Group 58 | . . . 58 29 29 . . . . . Highest-Rated Ally 21 | . . . 21 21 21 . . . . . Total Orders . | . . . . . . . . . . . Ally Attacks 24 | . . . . 11 13 . . . . . Total Damage 437 | . . . . 91 346 . . . . . Kills 6 | . . . . 4 2 . . . . . Allies Corrupted . | . . . . . . . . . . . Allies Melted . | . . . . . . . . . . . Intel | -11 -10 -10 -10 -9 -8 -7 -7 -7 -7 -6 ------- Run | Yrd Mat Min Exi Min Mat Fac Low Low Dat Pro Active Infowar (turns) 6011 | 44 725 648 788 170 592 1045 637 708 305 349 Optics 484 | . . . . . . . . . 135 349 Sensors 2896 | . . 1 . . . 1031 637 708 170 349 Terrain 779 | 44 285 . . . 450 . . . . . Traps 1029 | . . . . . 140 889 . . . . Seismic 2282 | . 440 647 788 170 237 . . . . . Robot Analysis Total 2 | . . 1 . . 1 . . . . . Derelict Logs Recovered 6 | . . 2 . . . . 2 2 . . Drone Launches . | . . . . . . . . . . . Drone Recoveries . | . . . . . . . . . . . Exploration | -11 -10 -10 -10 -9 -8 -7 -7 -7 -7 -6 ------------- Run | Yrd Mat Min Exi Min Mat Fac Low Low Dat Pro Turns Passed 7151 | 165 727 687 788 170 626 1686 637 957 359 349 Spaces Moved 3657 | 115 343 345 479 109 197 776 437 642 149 65 Core 5 | 4 . . . . . . . . . 1 Treads 855 | . 70 3 . . 61 627 . . 30 64 Legs 150 | . 150 . . . . . . . . . Wheels 2647 | 111 123 342 479 109 136 149 437 642 119 . Hover . | . . . . . . . . . . . Flight . | . . . . . . . . . . . Fastest Speed 50 | 50 95 95 140 140 140 115 115 115 115 490 Average Speed 152 | 91 124 168 140 140 217 174 115 115 190 506 Slowest Speed 1550 | 95 190 320 140 140 240 480 115 115 490 1550 Overloaded Moves . | . . . . . . . . . . . Propulsion Burnouts . | . . . . . . . . . . . Robots Hopped . | . . . . . . . . . . . Potential Cave-ins . | . . . . . . . . . . . Cave-ins Triggered . | . . . . . . . . . . . Exploration Rate (%) 51 | 5 58 84 90 27 21 19 90 77 81 15 Regions Visited 10 Branch Regions 7 Pre-discovered Areas 5 | . 1 . 1 . . 1 . 1 1 . Known Exits Taken 4 | . . . . . . 1 1 1 1 . Unknown Exits Taken 6 | 1 1 1 1 1 1 . . . . . Scrap Searched 9 | . . 2 . 1 . . 3 3 . . Spaces Dug 23 | . 3 . . . 1 13 . 6 . . Terrain Destroyed 369 | . 24 25 . 1 35 40 83 95 65 1 Melee 15 | . . . . . 1 13 . 1 . . Projectile 10 | . 3 . . 1 . . . 5 . 1 AOE 344 | . 21 25 . . 34 27 83 89 65 . Terrain Rammed . | . . . . . . . . . . . Walls Destroyed . | . . . . . . . . . . . Machines Disabled . | . . . . . . . . . . . Actions | -11 -10 -10 -10 -9 -8 -7 -7 -7 -7 -6 --------- Run | Yrd Mat Min Exi Min Mat Fac Low Low Dat Pro Total 4741 | 153 524 408 592 117 331 989 549 796 201 81 Wait 360 | 3 65 13 18 3 49 58 62 65 11 13 Move 3647 | 114 342 344 478 108 196 775 436 641 148 65 Hop . | . . . . . . . . . . . Pick Up 102 | 8 17 14 5 . 17 16 8 11 6 . Fast Attach 22 | 6 3 . . . . 9 2 1 1 . Attach 40 | 2 5 1 1 . 9 9 2 4 6 1 Detach 4 | . 1 . . . . 2 . 1 . . Swap 119 | 1 13 12 3 2 13 28 9 26 12 . Drop 63 | 1 13 2 1 . 11 12 10 10 3 . Fire 260 | 18 63 20 2 4 34 51 20 33 13 2 Melee 28 | . . . 1 . 2 20 . 4 1 . Ram 2 | . . 2 . . . . . . . . Kick 1 | . 1 . . . . . . . . . Crush 2 | . 1 . . . . 1 . . . . Escape Stasis 8 | . . . . . . 8 . . . . Rewire 83 | . . . 83 . . . . . . . Trap . | . . . . . . . . . . . Miscellaneous . | . . . . . . . . . . . Route ------- -11/Scrapyard -10/Materials (discovered 3 exits: *Mat x2 / *Min) -10/Mines (discovered 3 exits: *Mat x2 / *Exi) -10/Exiles -9/Mines -8/Materials -7/Factory (discovered 2 exits: *Low x2) -7/Lower Caves -7/Lower Caves (discovered 2 exits: *Fac / *Dat) -7/Data Miner -6/Proximity Caves History --------- Turn | Location | Event 8 | -11/Scrapyard | Discovered new exit (range 15) 166 | -11/Scrapyard | Entered Materials 330 | -10/Materials | Build established: Mutant 440 | -10/Materials | Discovered new exit (range 7) 452 | -10/Materials | Identified exit to Materials 704 | -10/Materials | Repaired Lgt. Treads 737 | -10/Materials | Discovered exit to Materials (range 16) 868 | -10/Materials | Discovered new exit (range 12) 893 | -10/Materials | Entered Mines 923 | -10/Mines | Met a Derelict bent on vengeance 990 | -10/Mines | Learned Materials garrison access intel 1004 | -10/Mines | Found DCF Scrap (13 items) 1066 | -10/Mines | Found a hidden stash of uninstalled traps 1134 | -10/Mines | Found a damaged Exp. Sensor Array with a note attached 1138 | -10/Mines | Found Prototype Device 1139 | -10/Mines | Identified Exp. Sensor Array 1249 | -10/Mines | Discovered exit to Materials (range 8) 1267 | -10/Mines | Learned Materials non-interactive machine intel 1391 | -10/Mines | Discovered exit to Materials (range 5) 1573 | -10/Mines | Deemed a non-threat by the Exiles lab entrance 1574 | -10/Mines | Discovered new exit (range 5) 1580 | -10/Mines | Entered Exiles 1580 | -10/Exiles | Found Exiles lab destroyed 1987 | -10/Exiles | Learned location of Zion (-6) 2099 | -10/Exiles | Opened EX-Vault 2103 | -10/Exiles | Found Prototype Energy Cannon 2103 | -10/Exiles | Identified Latent Energy Streamer 2284 | -10/Exiles | Murdered 3 allies 2355 | -10/Exiles | Discovered new exit (range 10) 2368 | -10/Exiles | Entered Mines 2368 | -9/Mines | Accompanied by 2 allies 2406 | -9/Mines | A weapon hastily lodged in a ceiling crevice suddenly fell to the ground 2466 | -9/Mines | Core integrity fell below 50% 2529 | -9/Mines | Discovered new exit (range 7) 2538 | -9/Mines | Entered Materials 2538 | -8/Materials | Accompanied by 2 allies 2538 | -8/Materials | Evolved 4 slots: Propulsion x2, Utility x2 2539 | -8/Materials | Loaded intel: 47 non-interactive machine locations 2540 | -8/Materials | Loaded intel: 1 garrison access location 2562 | -8/Materials | Build established: Derelict-Mutant 2914 | -8/Materials | Build established: Scavenger-Mutant 2961 | -8/Materials | Discovered new exit (range 6) 3095 | -8/Materials | Central database locked down 3164 | -8/Materials | Entered Factory 3164 | -7/Factory | Evolved 2 slots: Propulsion x1, Utility x1 3397 | -7/Factory | Discovered new exit (range 5) 3403 | -7/Factory | Identified exit to Lower Caves 3804 | -7/Factory | Discovered exit to Lower Caves (range 16) 3956 | -7/Factory | Lost 3 parts (1n2u) 4166 | -7/Factory | System corruption reached 10% 4202 | -7/Factory | Lost 6 parts (1p3n2u) 4461 | -7/Factory | Build established: Mutant 4850 | -7/Factory | Entered Lower Caves 4852 | -7/Lower Caves | Attracted the attention of an 0b10 checkpoint 5092 | -7/Lower Caves | Learned Factory non-interactive machine intel 5140 | -7/Lower Caves | Encountered a Warlord checkpoint 5141 | -7/Lower Caves | Learned Factory non-interactive machine intel 5414 | -7/Lower Caves | Discovered new exit (range 11) 5425 | -7/Lower Caves | Identified exit to Lower Caves 5445 | -7/Lower Caves | Found DCF Scrap (12 items) 5487 | -7/Lower Caves | Entered another Lower Caves area 5493 | -7/Lower Caves | Discovered new exit (range 11) 5505 | -7/Lower Caves | Identified exit to Factory 5590 | -7/Lower Caves | Attracted the attention of an 0b10 base 5626 | -7/Lower Caves | Build established: Derelict-Mutant 5744 | -7/Lower Caves | Attacked by a delusional Derelict stockpiling parts 5882 | -7/Lower Caves | Learned Factory trap positions 6039 | -7/Lower Caves | Attracted the attention of an 0b10 checkpoint 6039 | -7/Lower Caves | Core integrity fell below 50% 6419 | -7/Lower Caves | Discovered new exit (range 13) 6443 | -7/Lower Caves | Identified exit to Data Miner 6444 | -7/Lower Caves | Entered Data Miner 6444 | -7/Data Miner | Discovered new exit (range 6) 6450 | -7/Data Miner | Identified exit to Proximity Caves 6466 | -7/Data Miner | Met Data Miner 6503 | -7/Data Miner | Learned location of Section 7 (-2) 6503 | -7/Data Miner | Acquired the access code to Warlord's prototype stash 6527 | -7/Data Miner | Received God Mode back door access code from Data Miner 6590 | -7/Data Miner | Destroyed Data Miner 6594 | -7/Data Miner | Found Prototype Hackware 6595 | -7/Data Miner | Data Conduit disabled 6599 | -7/Data Miner | Found Prototype Hackware 6662 | -7/Data Miner | Found Prototype Hackware 6676 | -7/Data Miner | Lost 10 parts (2p4n2u2w) 6803 | -7/Data Miner | Entered Proximity Caves 6862 | -6/Proximity Caves | Build established: Mutant 7139 | -6/Proximity Caves | Core integrity fell below 20% 7152 | -6/Proximity Caves | Destroyed by S-27 Virus with Autogun Last Messages --------------- 06829_ System corrupted: Hvy. Particle Gun misfires. 06854_ 7 &C&Z6:HM,R3TBNUHZOHWK7LRTVV4>H%5LW,RX 06869_ System corrupted: Component data lost. 06899_ System corrupted: Matter fused (-7). 06917_ System corrupted: Energy discharge (-22). 06936_ System corrupted: Matter fused (-6). 06952_ System corrupted: Matter fused (-10). 06985_ System corrupted: Substantial component data lost. 07003_ System corrupted: Heat flow error (+125). 07056_ System corrupted: Heat flow error (+136). 07076_ System corrupted: Matter fused (-10). 07099_ System corrupted: Substantial component data lost. 07119_ S-27 Virus destroyed. 07129_ System corrupted: Matter fused (-5). 07129_ Lgt. Nuclear Core fries itself beyond repair. 07129_ Acquired 21 matter. 07130_ Arm. Treads destroyed. 07131_ VTOL Module fries itself beyond repair. 07144_ System corrupted: Matter fused (-7). 07152_ Hvy. Ion Cannon destroyed. Map ----- +----------------------------------------------------+ | ?????????????????????????????????????????????????? | | ?????????????????????????????????????????????????? | | ?????????????????????????????????????????????????? | | ?????????????????????????????????????????????????? | | ?????????????????????????????????????????????????? | | ?????????????????????????????????????????????????? | | ?????????????????????????????????????????????????? | | ?????????????##???????????##?????????????????????? | | ??????????? ?????????? ?????????????????????? | | ?????????? ?????????? ??????????????????????? | | ????????? ????????? ??????????????????????? | | ?????????# ???????# ??????????????????????? | | ??????????# ????### ??????????????????????? | | ???????????# ???? ??????????????????????? | | ???????????? ??? ??????????????????????? | | ????????????? ??? ??????????????????????? | | ?????????????? ?? ?????#????????????????? | | ???????????????? #?# ???? #????????????????? | | ????????????????? ## ??? #????????????????? | | ?????????????????? s#?? ###??????????????? | | ???????????????????# #? ???????????????? | | ????????????????????# ## ?????????????????? | | ?????????????????????# s ???????????????????? | | ??????????????????????? ?????????????????????? | | ???????????????????????##s#??###?????????????????? | | ???????????????????????#;@#?# ##????????????????? | | ????????????????????##### ## #????????????????? | | ##??????????????????# #?????????????????? | | #?????????????????# #####?????????????????? | | #????????????????## #?????????????????????? | | ##???############## ##########?????????????? | | ?# ##?## #?????????????? | | ??# ### #?????????????? | | #### #####+##### ##### #?????????????? | | # #?????????# ##????????????????????? | | # #?????????# ##?????????????????????? | | " # #?????????# ##??????????????????????? | | # ## #?????????# #???????????????????????? | | ### #?????????# #???????????????????????? | | #?## #?????????# #???????????????????????? | | " #??# #?????????# ???????????????????????? | | " #??# #?????????# #???????????????????????? | | #??# #?????????# #???????????????????????? | | ##??# #?????????# #???????????????????????? | | ###???# ????????? #???????????????????????? | | #?????# ????????? #???????????????????????? | | #?????#####????????####???????????????????????? | | #?????????????????????????????????????????????? | | #?????????????????????????????????????????????? | | ####?????????????????????????????????????????????? | +----------------------------------------------------+ Best States ------------- Heat Dissipation 48 Energy Generation 16 Energy Capacity 290 Matter Stores 300 Matter Capacity 300 Sight Range 22 Robot Scan Range 20 Terrain Scan Range 16 Terrain Scan Density 10 Armor Coverage 375 Weapon Cycling 15 Evasion (%) 55 Recoil Reduction 5 Offensive Hacking 11 Item Schematics ----------------- Combat Drone Bay | -7/Data Miner | Free Lgt. Regenerative Plating | -7/Data Miner | Free Exp. Power Shielding | -7/Data Miner | Free Multireflex Exoskeleton | -7/Data Miner | Free Imp. Heavy Machine Gun | -7/Data Miner | Free Thunder Leg | -7/Data Miner | Free Imp. Transmission Jammer | -7/Data Miner | Free Imp. Plasma Cutter | -7/Data Miner | Free Adv. Sensor Array | -7/Data Miner | Free Adv. Target Analyzer | -7/Data Miner | Free Graphene Brace | -7/Data Miner | Free Robot Schematics ------------------ None Fabricated ------------ Nothing Repaired ---------- Lgt. Treads | 32% | -10/Materials Alien Tech Used ----------------- None Achievements -------------- None Challenges ------------ None Game ------ Seed GlidesysRecyclingThrower Manual? 0 Play Time 01:07:57 Cumulative 109.2 hours Start 2025.06.18 @ 13:55:18 End 2025.06.18 @ 15:05:01 Sessions 1 Manual Loads 0 Difficulty Rogue Special Mode None Game No. 67 Rogue 67 Adventurer 0 Explorer 0 Win Type - Total 0 Types 0/0/0/0/0/0/0/0/0/0 Lore% 50 Gallery% 52 Achievement% 46 Wizard Run 0 Options --------- Layout 2 ASCII 0 Keyboard 0 Movement Numpad Keybinds 0 Fullscreen 0 Font 24/Proggy Map View 59x48 Zoom Use 0% Tactical HUD 1 Map Filters NONE Filters NONE Steam 1 RUN: 9be64829-8e5a-45de-9c49-0d19dd84631b